Cogmind - Beta 13 X1 @@@ ROGUE MODE // 2023.07.01 @ 15:37:55 Player: WayneKnight Result: Destroyed by Y-72 Warden with Quantum Rifle Performance ------------- Evolutions (7) 3500 Regions Visited (29) 5800 Robots Destroyed (167) 835 Value Destroyed (6497) 6497 Prototype IDs (49) 980 Alien Tech Used (3) 600 Bonus (2269) 2269 TOTAL SCORE: 20481 Bonus ------- High Alert Combat Kills 93 Follower Combat Kills 599 Met Data Miner 300 Met Zhirov 300 Met Warlord at Base 500 MAIN.C Attacked Warlord 500 Friendly Fire -23 Cogmind --------- Core Integrity 0/1300 Matter 300/300 Energy 99/100 System Corruption 3% Temperature Cool (9) Movement Core (50) Location -3/Armory Parts ------- > --- POWER (2) -------- (None) > --- PROPULSION (6) --- (None) > --- UTILITY (10) ----- Experimental Optical Array Advanced Signal Interpreter Improved Hacking Suite Advanced Hacking Suite Improved System Guard > --- WEAPON (3) ------- (None) > --- INVENTORY (5) ---- Micro Antimatter Reactor Advanced Signal Interpreter Improved Heavy Armor Plating Hypervelocity Railgun Peak State ------------ > --- POWER ------------ F-cell Engine Heavy Antimatter Reactor > --- PROPULSION ------- Cooled Gravmag System Cooled Gravmag System Cooled Gravmag System Improved Gyrokinetic Inverter Improved Linear Gravjet Cooled Antigrav System > --- UTILITY ---------- Large Storage Unit Enhanced Optical Array Long-range Sensor Array Advanced Signal Interpreter Long-range Terrain Scanner Improved Transmission Jammer Experimental Utility Shielding Advanced Hacking Suite Advanced System Shield Improved System Guard > --- WEAPON ----------- Dual-blade Saw Force Lance Plasma Lance > --- INVENTORY -------- Light Antimatter Reactor Light Particle Reactor Cooled Gravmag System Improved Linear Gravjet Advanced Energy Well Advanced Sensor Array Advanced Signal Interpreter Nanoactuators Improved Heavy Armor Plating EM Disruption Field Advanced Shield Generator Force Field Long-range Missile Launcher Force Lance [Rating: 145] Favorites ----------- Power Micro Fission Core Engine Improved Ion Engine Power Core Micro Fission Core Reactor Vortex Chain Reactor Propulsion Improved Antigrav System Treads Armored Treads Leg Aluminum Leg Wheel Armored Wheel Hover Unit Improved Antigrav System Flight Unit Nuclear Pulse Array Utility Large Storage Unit Device Advanced Sensor Array Storage Large Storage Unit Processor Advanced Signal Interpreter Hackware Hacking Suite Protection Hardened Medium Armor Plating Weapon Makeshift Axe Energy Gun Beamcaster Ballistic Gun Autogun Ballistic Cannon Compact Mass Driver Launcher Heavy Missile Launcher Impact Weapon Heavy Mace Slashing Weapon Makeshift Axe Piercing Weapon Force Lance Build | -11 -10 -10 -10 -9 -8 -7 -7 -7 -7 -7 -7 -6 -6 -6 -6 -5 -5 -5 -5 -4 -4 -4 -4 -4 -4 -4 -3 -3 -3 ------- Run | Jun Mat Min Exi Min Mat Fac Was Fac Low Low Dat Pro Fac Was Fac Fac Upp Upp War Pro Fac Was Fac Upp Upp Zhi Pro Res Arm Slots Evolved 14 | . . . . . 4 2 . . . . . . 2 . . 2 . . . . 2 . . . . . . 2 . Power 1 | . . . . . . . . . . . . . 1 . . . . . . . . . . . . . . . . Propulsion 4 | . . . . . 1 1 . . . . . . 1 . . 1 . . . . . . . . . . . . . Utility 8 | . . . . . 3 1 . . . . . . . . . 1 . . . . 1 . . . . . . 2 . Weapon 1 | . . . . . . . . . . . . . . . . . . . . . 1 . . . . . . . . Parts Attached 352 | 2 13 1 2 2 39 17 1 14 8 . . 27 13 1 7 35 7 2 7 2 29 . 34 . . 11 1 68 9 Power 30 | . 1 . . 1 4 1 . 1 . . . 1 1 . . 4 1 . 1 . . . . . . 2 . 12 . Engine 9 | . 1 . . . 4 . . . . . . . 1 . . 1 1 . . . . . . . . 1 . . . Core 9 | . . . . 1 . 1 . 1 . . . 1 . . . 3 . . . . . . . . . . . 2 . Reactor 12 | . . . . . . . . . . . . . . . . . . . 1 . . . . . . 1 . 10 . Propulsion 87 | 2 3 . . . 10 5 . 6 1 . . 1 5 . 1 8 . . 4 . 6 . 15 . . 3 . 15 2 Treads 10 | 2 1 . . . 7 . . . . . . . . . . . . . . . . . . . . . . . . Leg . | . . . . . . . . . . . . . . . . . . . . . . . . . . . . . . Wheel 4 | . 2 . . . 2 . . . . . . . . . . . . . . . . . . . . . . . . Hover 66 | . . . . . 1 5 . 5 1 . . 1 5 . 1 8 . . 4 . 6 . 15 . . 3 . 11 . Flight 7 | . . . . . . . . 1 . . . . . . . . . . . . . . . . . . . 4 2 Utility 163 | . 5 . . . 18 8 1 7 2 . . 16 6 1 4 20 2 . . . 21 . 14 . . 3 1 29 5 Device 107 | . 1 . . . 6 5 1 6 2 . . 8 3 1 3 14 1 . . . 17 . 10 . . . 1 25 3 Storage 10 | . 2 . . . 2 . . . . . . 1 2 . . 1 . . . . . . . . . 1 . 1 . Processor 16 | . 1 . . . 3 1 . 1 . . . 1 1 . 1 1 . . . . 2 . 2 . . . . 1 1 Hackware 11 | . . . . . 1 2 . . . . . 3 . . . 1 . . . . 1 . 2 . . . . . 1 Protection 19 | . 1 . . . 6 . . . . . . 3 . . . 3 1 . . . 1 . . . . 2 . 2 . Artifact . | . . . . . . . . . . . . . . . . . . . . . . . . . . . . . . Weapon 72 | . 4 1 2 1 7 3 . . 5 . . 9 1 . 2 3 4 2 2 2 2 . 5 . . 3 . 12 2 Energy Gun 2 | . 1 . . . 1 . . . . . . . . . . . . . . . . . . . . . . . . Energy Cannon . | . . . . . . . . . . . . . . . . . . . . . . . . . . . . . . Ballistic Gun 10 | . 2 1 1 1 5 . . . . . . . . . . . . . . . . . . . . . . . . Ballistic Cannon 1 | . . . . . . . . . . . . . . . . . . . . . . . . . . . . . 1 Launcher 16 | . 1 . 1 . 1 . . . 1 . . 4 . . . . 2 1 . 1 . . 2 . . . . 2 . Special Weapon . | . . . . . . . . . . . . . . . . . . . . . . . . . . . . . . Impact Weapon 1 | . . . . . . . . . . . . . . . . 1 . . . . . . . . . . . . . Slashing Weapon 26 | . . . . . . 2 . . 4 . . 5 1 . 2 2 2 1 1 1 1 . 1 . . 1 . 1 1 Piercing Weapon 16 | . . . . . . 1 . . . . . . . . . . . . 1 . 1 . 2 . . 2 . 9 . Special Melee Weapon . | . . . . . . . . . . . . . . . . . . . . . . . . . . . . . . Unidentified Prototypes 19 | . . . . . 4 1 . 1 . . . 1 . . . 1 . . 3 . 1 . . . . 5 . 1 1 Parts Lost 59 | . . . . 1 5 1 . . 2 . . 7 1 . 4 1 . . . . 2 . 4 . . . . 19 12 Power 8 | . . . . 1 2 . . . . . . 1 . . . . . . . . . . . . . . . 3 1 Propulsion 25 | . . . . . . . . . 1 . . 4 1 . 1 1 . . . . 1 . 3 . . . . 8 5 Utility 18 | . . . . . 2 1 . . 1 . . 1 . . 2 . . . . . 1 . 1 . . . . 5 4 Weapon 8 | . . . . . 1 . . . . . . 1 . . 1 . . . . . . . . . . . . 3 2 Highest Loss Streak 14 | . . . . 1 3 1 . . 1 . . 6 1 . 3 1 . . . . 1 . 2 . . . . 14 10 To Critical Strikes . | . . . . . . . . . . . . . . . . . . . . . . . . . . . . . . Average Slot Usage (%) 93 | . 96 100 72 99 98 96 92 92 91 92 92 95 78 93 91 94 94 94 94 94 93 94 91 79 78 80 100 82 70 Engine 4 | . 14 14 14 . 8 . . . . . . . 5 6 6 3 . 5 1 . . . . . . 2 5 1 . Core 3 | . . . . 13 . 6 7 7 7 7 7 7 6 6 6 7 10 5 1 . . . . . . . . . . Reactor 1 | . . . . . . . . . . . . . . . . . . . 3 5 5 5 5 5 5 5 5 5 3 Treads 5 | . 23 . . . 17 . . . . . . . . . . . . . . . . . . . . . . . . Wheel 3 | . 4 28 28 28 9 . . . . . . . . . . . . . . . . . . . . . . . . Hover 18 | . . . . . . 29 30 30 29 30 30 28 19 33 32 29 29 29 32 35 30 31 30 31 31 31 31 15 . Device 9 | . 2 . . . 12 14 15 7 7 7 7 6 8 12 9 10 10 11 11 11 12 10 8 5 5 5 8 11 7 Storage 7 | . 14 14 14 14 9 7 7 7 7 7 7 6 3 6 6 5 5 5 5 5 5 5 5 5 5 5 5 4 3 Processor 11 | . 2 14 14 14 11 7 7 14 15 15 15 14 6 6 6 8 11 11 11 11 12 15 17 21 21 17 15 16 18 Hackware 8 | . . . . . . 14 15 15 15 15 15 15 20 13 13 13 11 11 11 11 10 10 10 10 10 10 10 9 12 Protection 3 | . 5 . . . 11 . . . . . . . . . . . . . . . . . . . . 2 1 1 . Energy Gun 1 | . 8 . . . 4 . . . . . . . . . . . . . . . . . . . . . . . . Ballistic Gun 5 | . 19 26 . 27 13 1 . . . . . . . . . . . . . . . . . . . . . . . Slashing Weapon 4 | . . . . . . 5 7 7 6 7 7 8 6 6 9 11 10 11 8 5 10 10 3 . . . 5 1 1 Piercing Weapon 1 | . . . . . . 3 . . . . . . . . . . . . 2 5 5 5 8 . . . 10 6 3 Naked Turns . | . . . . . . . . . . . . . . . . . . . . . . . . . . . . . . Heaviest Build 78 | 14 34 31 31 31 53 37 33 33 34 32 32 44 41 43 44 45 46 50 65 69 77 68 78 64 56 65 66 74 51 Greatest Support 72 | 40 40 24 24 24 60 60 35 41 41 41 41 42 57 57 57 67 66 66 72 71 72 71 71 66 56 68 68 70 51 Greatest Overweight (x) 3 | . 2 1 1 1 2 . . . 1 . . 3 1 . . . . . 1 . 1 . 1 1 . 1 . 3 3 Average Overweight (x) . | . . 1 1 1 . . . . . . . . . . . . . . . . . . . . . . . . . Largest Inventory Capacity 15 | 8 15 15 15 15 15 15 15 15 15 15 15 15 15 15 15 15 15 15 15 15 15 15 15 15 15 15 15 15 15 Average Capacity 14 | 8 13 15 15 15 15 15 15 15 15 15 15 14 9 15 15 15 15 15 15 15 15 15 15 15 15 15 15 15 14 Most Carried 15 | 6 15 15 15 15 15 15 14 15 15 15 15 15 15 14 15 15 15 15 15 15 15 14 15 15 15 15 15 15 13 Average Carried 14 | 6 10 15 14 14 14 14 14 14 13 14 15 14 8 13 13 14 15 15 14 14 14 14 13 14 14 14 12 13 11 Final Capacity 15 | 8 15 15 15 15 15 15 15 15 15 15 15 5 15 15 15 15 15 15 15 15 15 15 15 15 15 15 15 15 5 Final Carried 15 | 6 15 15 13 15 15 14 14 14 14 15 15 5 14 14 12 15 15 15 15 15 14 14 12 15 15 12 15 13 5 Class Distribution -------------------- 39% | Hacker-Scout 20% | Mutant 16% | Hacker-Mutant 13% | Scavenger-Mutant 6% | Hacker-Ninja Dominant Class ---------------- Mutant | -10/Materials Mutant | -10/Mines Mutant | -10/Exiles Mutant | -9/Mines Scavenger-Mutant | -8/Materials Hacker-Mutant | -7/Factory Hacker-Mutant | -7/Waste Hacker-Scout | -7/Factory Hacker-Scout | -7/Lower Caves Hacker-Scout | -7/Lower Caves Hacker-Scout | -7/Data Miner Hacker-Scout | -6/Proximity Caves Hacker-Mutant | -6/Factory Hacker-Mutant | -6/Waste Hacker-Mutant | -6/Factory Hacker-Scout | -5/Factory Hacker-Scout | -5/Upper Caves Hacker-Scout | -5/Upper Caves Hacker-Scout | -5/Warlord Hacker-Scout | -4/Proximity Caves Hacker-Ninja | -4/Factory Hacker-Scout | -4/Waste Hacker-Scout | -4/Factory Hacker-Scout | -4/Upper Caves Hacker-Scout | -4/Upper Caves Hacker-Scout | -4/Zhirov Hacker-Scout | -3/Proximity Caves Hacker-Scout | -3/Research Hacker-Scout | -3/Armory Resources | -11 -10 -10 -10 -9 -8 -7 -7 -7 -7 -7 -7 -6 -6 -6 -6 -5 -5 -5 -5 -4 -4 -4 -4 -4 -4 -4 -3 -3 -3 ----------- Run | Jun Mat Min Exi Min Mat Fac Was Fac Low Low Dat Pro Fac Was Fac Fac Upp Upp War Pro Fac Was Fac Upp Upp Zhi Pro Res Arm Matter Collected 5697 | 200 229 255 . 207 1100 243 . 41 262 . . 190 65 . 73 605 197 241 . 22 390 . 288 42 28 . 136 657 226 Remotely . | . . . . . . . . . . . . . . . . . . . . . . . . . . . . . . Salvage Created 6277 | . 459 160 . 218 1567 163 . 41 87 . . 191 19 . 181 550 142 41 . . 453 . 486 . . . 144 1209 166 Parts 459 | . 41 15 . 15 112 17 . 3 3 . . 12 . . 13 51 8 4 . . 27 . 35 . . . 8 84 11 Haulers Intercepted 2 | . 1 . . . 1 . . . . . . . . . . . . . . . . . . . . . . . . Recyclers Shooed 2 | . . . . . 1 . . . . . . . . . . . . . . . . . . . . . . 1 . Parts Field Recycled . | . . . . . . . . . . . . . . . . . . . . . . . . . . . . . . Retrieved Matter . | . . . . . . . . . . . . . . . . . . . . . . . . . . . . . . Parts Self-Destructed 37 | . . . . . . . . . 3 . . 12 . . . . 10 4 . . . . . . . . 8 . . Prevented 6 | . . . . . . . . . . . . . . . . . . 4 . . . . . . 2 . . . . Kills | -11 -10 -10 -10 -9 -8 -7 -7 -7 -7 -7 -7 -6 -6 -6 -6 -5 -5 -5 -5 -4 -4 -4 -4 -4 -4 -4 -3 -3 -3 ------- Run | Jun Mat Min Exi Min Mat Fac Was Fac Low Low Dat Pro Fac Was Fac Fac Upp Upp War Pro Fac Was Fac Upp Upp Zhi Pro Res Arm Combat Hostiles Destroyed 120 | . 10 5 . 5 30 2 . 1 2 . . 12 1 . 2 6 3 4 . . 7 . 9 . . . 4 15 2 Melee 49 | . . . . . . 2 . 1 1 . . 1 1 . 2 6 1 1 . . 7 . 6 . . . 4 14 2 Guns 47 | . 10 5 . 5 27 . . . . . . . . . . . . . . . . . . . . . . . . AOE 24 | . . . . . 3 . . . 1 . . 11 . . . . 2 3 . . . . 3 . . . . 1 . Classes Destroyed 16 | . 7 . . 1 5 1 . . . . . . 1 . . . . . . . 1 . . . . . . . . Worker 9 | . 1 1 . . 1 . . . . . . . . . 3 2 . . . . . . 1 . . . . . . Builder 6 | . 1 1 . . . . . . . . . . . . 1 1 . . . . . . 1 . . . . 1 . Tunneler 3 | . 1 . . . 2 . . . . . . . . . . . . . . . . . . . . . . . . Hauler 2 | . 1 . . . 1 . . . . . . . . . . . . . . . . . . . . . . . . Recycler 1 | . . . . . 1 . . . . . . . . . . . . . . . . . . . . . . . . Operator 5 | . . . . . 1 . . . . . . . . . . 3 . . . . 1 . . . . . . . . Watcher 22 | . 2 . . . 3 3 . . . . . . . . . 3 . . . . 1 . 3 . . . . 6 1 Swarmer 39 | . 3 4 . . 7 1 . . . . . 10 . . . . . 4 . . . . 4 . . . 4 2 . Grunt 30 | . 7 1 . 4 10 . . . 2 . . 2 . . . . 2 . . . . . . . . . . 2 . Brawler 1 | . . . . . . . . . . . . . . . . . . . . . 1 . . . . . . . . Duelist 1 | . . . . 1 . . . . . . . . . . . . . . . . . . . . . . . . . Sentry 11 | . . . . . 9 . . . . . . . . . . 1 . . . . . . . . . . . 1 . Hunter 4 | . . . . . 3 . . . . . . . . . . 1 . . . . . . . . . . . . . Programmer 32 | . . . . . . 1 . 1 . . . . . . 2 4 1 . . . 6 . 5 . . . . 10 2 Heavy 1 | . . . . . 1 . . . . . . . . . . . . . . . . . . . . . . . . Assembled 1 | . . . . . . . . . . . . . 1 . . . . . . . . . . . . . . . . Best Kill Streak 7 | . 4 3 . 3 5 1 . 1 2 . . 4 1 . 5 2 1 3 . . 2 . 7 . . . 2 4 1 Combat Bots Only 4 | . 3 3 . 3 4 1 . 1 2 . . 4 1 . 1 2 1 3 . . 2 . 3 . . . 2 4 1 Max Kills in Single Turn 4 | . 2 2 . 2 4 1 . 1 1 . . 3 1 . 1 1 1 3 . . 1 . 2 . . . 1 1 1 Gunslinging 1 | . 1 1 . 1 . . . . . . . . . . . . . . . . . . . . . . . . . Exploded 3 | . . . . . 3 . . . 1 . . 3 . . . . 1 3 . . . . 2 . . . . 1 . Melee 1 | . . . . . . 1 . 1 1 . . 1 1 . 1 1 1 1 . . 1 . 1 . . . 1 1 1 Uniques/NPCs Destroyed . | . . . . . . . . . . . . . . . . . . . . . . . . . . . . . . Combat | -11 -10 -10 -10 -9 -8 -7 -7 -7 -7 -7 -7 -6 -6 -6 -6 -5 -5 -5 -5 -4 -4 -4 -4 -4 -4 -4 -3 -3 -3 -------- Run | Jun Mat Min Exi Min Mat Fac Was Fac Low Low Dat Pro Fac Was Fac Fac Upp Upp War Pro Fac Was Fac Upp Upp Zhi Pro Res Arm Damage Taken 11051 | . 329 122 . 191 1819 232 . 33 226 . . 884 157 . 363 836 74 29 . 25 245 . 916 . . . 157 2823 1590 Core 2699 | . 75 19 . 67 362 74 . 5 28 . . 174 43 . 85 212 35 . . . 19 . 183 . . . . 658 660 Absorbed by Shields 462 | . . . . . . . . . . . . . . . . . . . . . 259 . 72 . . . . 131 . Redirected to Shielding 190 | . 17 . . . 20 . . . . . . . . . . . . . . . . . . . . . . 153 . Ignored by Resistances 447 | . . . . . . . . . . . . . . . . . . . . . . . 10 . . . . 437 . Regen/Repaired (Parts) 159 | . . . . . 42 . . 10 . . . . . . . 96 . . 11 . . . . . . . . . . Core Remaining (%) 66 | 100 . . . 35 34 . . . . . . 59 . . 84 . . . . 75 . . . . . . 76 . . Volleys Fired 225 | . 44 15 . 10 123 . . . 2 . . 9 . . . . 10 1 . . . . 5 . . . . 4 2 Largest 2 | . 2 2 . 2 2 . . . 1 . . 1 . . . . 1 1 . . . . 1 . . . . 1 1 Hottest 103 | . 70 46 . 46 103 . . . 39 . . 39 . . . . 43 43 . . . . 43 . . . . 52 66 Shots Fired 422 | . 88 32 . 22 245 . . . 2 . . 9 . . . . 11 1 . . . . 5 . . . . 4 3 Gun 386 | . 88 32 . 22 244 . . . . . . . . . . . . . . . . . . . . . . . . Cannon 3 | . . . . . . . . . . . . . . . . . . . . . . . . . . . . . 3 Launcher 33 | . . . . . 1 . . . 2 . . 9 . . . . 11 1 . . . . 5 . . . . 4 . Special . | . . . . . . . . . . . . . . . . . . . . . . . . . . . . . . Kinetic 356 | . 64 32 . 22 235 . . . . . . . . . . . . . . . . . . . . . . . 3 Thermal 33 | . 24 . . . 9 . . . . . . . . . . . . . . . . . . . . . . . . Explosive 32 | . . . . . . . . . 2 . . 9 . . . . 11 1 . . . . 5 . . . . 4 . Electromagnetic 1 | . . . . . 1 . . . . . . . . . . . . . . . . . . . . . . . . Robot Hit Streak 24 | . 15 11 . 9 24 . . . . . . 2 . . . . 1 1 . . . . . . . . . . 2 Robot Miss Streak 11 | . 4 6 . 1 11 . . . . . . 1 . . . . 1 . . . . . . . . . . 1 2 Penetration Max 1 | . . . . . 1 . . . . . . . . . . . . . . . . . . . . . . . . Secondary Targets 6 | . 1 1 . 1 3 . . . . . . . . . . . . . . . . . . . . . . . . Max Gunslinging Chain 1 | . 1 1 . 1 1 . . . . . . . . . . . . . . . . . . . . . . . . Shots Hit Robots 491 | . 56 19 . 15 175 6 . 3 3 . . 3 3 . 9 35 2 3 . . 31 . 23 . . . 6 83 16 Core Hits 252 | . 22 8 . 7 70 5 . 1 3 . . 17 1 . 6 19 13 4 . . 12 . 20 . . . 5 35 4 Critical Kills 3 | . . . . . 3 . . . . . . . . . . . . . . . . . . . . . . . . Critical Parts Destroyed 3 | . 1 . . . 2 . . . . . . . . . . . . . . . . . . . . . . . . Critical Strikes 47 | . 5 . . . 5 1 . 1 . . . . . . . 5 . . . . 3 . 4 . . . 2 17 4 Burn 4 | . 4 . . . . . . . . . . . . . . . . . . . . . . . . . . . . Destroy 6 | . 1 . . . 5 . . . . . . . . . . . . . . . . . . . . . . . . Sever 12 | . . . . . . 1 . 1 . . . . . . . 5 . . . . 2 . . . . . . 3 . Impale 25 | . . . . . . . . . . . . . . . . . . . . . 1 . 4 . . . 2 14 4 Melee Attacks 574 | . . . . . . 30 . 21 3 3 . 8 14 . 21 100 5 4 . 3 77 . 73 . . . 18 169 25 Thermal 5 | . . . . . . . . . . . . . . . . . . . . . . . . . . . . . 5 Impact . | . . . . . . . . . . . . . . . . . . . . . . . . . . . . . . Slashing 272 | . . . . . . 23 . 21 3 3 . 8 14 . 21 100 5 4 . 3 43 . 15 . . . 1 8 . Piercing 290 | . . . . . . 7 . . . . . . . . . . . . . . 27 . 58 . . . 17 161 20 Entropic 7 | . . . . . . . . . . . . . . . . . . . . . 7 . . . . . . . . Sneak Attacks 25 | . . . . . . 1 . . . . . . . . 4 5 1 . . . 2 . 6 . . . 1 5 . Combat Hostiles 6 | . . . . . . . . . . . . . . . . 1 1 . . . 2 . 1 . . . 1 . . Follow-up Attacks 50 | . . . . . . 1 . . . . . . . . 1 1 . 1 . . 11 . 9 . . . . 23 3 Damage Inflicted 17485 | . 836 278 . 234 3097 250 . 170 455 . . 1221 192 . 563 1565 817 351 . . 1547 . 1709 . . . 251 3503 446 Guns 4234 | . 823 278 . 234 2899 . . . . . . . . . . . . . . . . . . . . . . . . Cannons 23 | . . . . . . . . . . . . . . . . . . . . . . . . . . . . . 23 Explosions 3117 | . . . . . 166 . . . 239 . . 1182 . . . . 733 287 . . . . 465 . . . . 45 . Melee 10066 | . . . . . . 250 . 170 216 . . 39 192 . 563 1565 84 64 . . 1547 . 1244 . . . 251 3458 423 Ramming 45 | . 13 . . . 32 . . . . . . . . . . . . . . . . . . . . . . . . Kinetic 3901 | . 597 278 . 234 2769 . . . . . . . . . . . . . . . . . . . . . . . 23 Thermal 512 | . 226 . . . 244 . . . . . . . . . . . . . . . . . 42 . . . . . . Explosive 2909 | . . . . . . . . . 239 . . 1182 . . . . 733 287 . . . . 423 . . . . 45 . Electromagnetic 52 | . . . . . 52 . . . . . . . . . . . . . . . . . . . . . . . . Impact . | . . . . . . . . . . . . . . . . . . . . . . . . . . . . . . Slashing 3924 | . . . . . . 220 . 170 216 . . 39 192 . 563 1565 84 64 . . 522 . 151 . . . . 138 . Piercing 5810 | . . . . . . 30 . . . . . . . . . . . . . . 693 . 1093 . . . 251 3320 423 Entropic 332 | . . . . . . . . . . . . . . . . . . . . . 332 . . . . . . . . Highest Corruption 10 | . 4 4 4 4 . 4 . . . . . . . 8 9 10 10 10 10 . 4 6 7 5 5 5 5 9 3 Average Corruption 5 | . 3 4 4 4 . 2 . . . . . . . 8 4 6 10 10 10 . 3 6 4 5 5 5 5 4 2 Corruption Purged 19 | . . . . . . 4 . . . . . . . . 5 . . . . . . . . . . . . 9 1 Corruption Blocked 29 | . . . . . . . . . . . . . . . . . . . . . . . . . . . . 29 . Effects 174 | . 4 13 8 13 . . . . . . . . . 3 9 26 42 12 1 . 5 1 11 5 1 3 8 6 3 Message Errors 41 | . 2 1 . 7 . . . . . . . . . 2 2 6 10 1 . . . . 3 1 . 2 1 3 . Matter Fused 45 | . 1 4 1 1 . . . . . . . . . 1 3 11 11 4 . . 2 . 3 1 . . 1 . 1 Heat Flow Errors 22 | . . 1 1 . . . . . . . . . . . 1 3 6 2 1 . 1 1 1 1 . . 2 1 . Energy Discharges 27 | . . 1 3 1 . . . . . . . . . . 1 2 7 2 . . 1 . 4 1 1 1 1 1 . Parts Rejected 1 | . . . . . . . . . . . . . . . . . . . . . . . . . . . . . 1 Parts Fused 2 | . . . 1 . . . . . . . . . . . . . 1 . . . . . . . . . . . . Data Loss (minor) 13 | . 1 2 1 1 . . . . . . . . . . 2 . 2 1 . . 1 . . . . . 1 1 . Data Loss (major) 11 | . . 1 1 1 . . . . . . . . . . . 3 3 1 . . . . . . . . 1 . . Misfires 6 | . . 2 . 2 . . . . . . . . . . . . 1 . . . . . . . . . . . 1 Alerts 4 | . . 1 . . . . . . . . . . . . . 1 . . . . . . . 1 . . 1 . . Misdirections 2 | . . . . . . . . . . . . . . . . . 1 1 . . . . . . . . . . . Overload Shots . | . . . . . . . . . . . . . . . . . . . . . . . . . . . . . . Overflow Damage 1752 | . 3 . . . 22 . . 19 142 . . 67 26 . 45 184 8 27 . . 147 . 372 . . . . 543 147 Projectiles . | . . . . . . . . . . . . . . . . . . . . . . . . . . . . . . Explosions 135 | . . . . . 22 . . . . . . 33 . . . . 8 27 . . . . 45 . . . . . . Melee 1617 | . 3 . . . . . . 19 142 . . 34 26 . 45 184 . . . . 147 . 327 . . . . 543 147 Knockbacks 1 | . . . . . . . . . . . . . . . . . . . . . . . . . . . . . 1 Impact . | . . . . . . . . . . . . . . . . . . . . . . . . . . . . . . Kinetic 1 | . . . . . . . . . . . . . . . . . . . . . . . . . . . . . 1 Secondary . | . . . . . . . . . . . . . . . . . . . . . . . . . . . . . . Self-Inflicted Damage 183 | . . . . . 16 . . . . . . 37 . . . . 74 . . . . . 29 . . . . 27 . Shots 6 | . . . . . 1 . . . . . . 1 . . . . 2 . . . . . 1 . . . . 1 . Rammed 3 | . 1 . . . 2 . . . . . . . . . . . . . . . . . . . . . . . . Targets Rammed 3 | . 1 . . . 2 . . . . . . . . . . . . . . . . . . . . . . . . Kicked . | . . . . . . . . . . . . . . . . . . . . . . . . . . . . . . Crushed . | . . . . . . . . . . . . . . . . . . . . . . . . . . . . . . Highest Temperature 375 | . 84 261 102 32 298 7 . . 5 . . 36 8 178 305 243 254 217 92 . 117 186 331 375 76 76 209 135 . Average Temperature 64 | . 23 44 52 10 50 4 . . 3 . . 12 3 84 131 27 86 107 53 . 60 102 63 151 25 40 90 10 . Received Heat Transfer 1498 | . 150 18 . 51 378 45 . 12 75 . . 291 . . . 54 . . . 9 . . 90 . . . . 240 85 Effects 12 | . . . . . . . . . . . . . . . 4 3 . . . . . . . 5 . . . . . Energy Bleed 6 | . . . . . . . . . . . . . . . 4 . . . . . . . . 2 . . . . . Interference 5 | . . . . . . . . . . . . . . . . 3 . . . . . . . 2 . . . . . Short Circuit 1 | . . . . . . . . . . . . . . . . . . . . . . . . 1 . . . . . Siege Activations . | . . . . . . . . . . . . . . . . . . . . . . . . . . . . . . Robots Corrupted . | . . . . . . . . . . . . . . . . . . . . . . . . . . . . . . Combat Hostiles . | . . . . . . . . . . . . . . . . . . . . . . . . . . . . . . Parts Fried . | . . . . . . . . . . . . . . . . . . . . . . . . . . . . . . Impact Corruptions 1 | . 1 . . . . . . . . . . . . . . . . . . . . . . . . . . . . Robots Melted . | . . . . . . . . . . . . . . . . . . . . . . . . . . . . . . Combat Hostiles . | . . . . . . . . . . . . . . . . . . . . . . . . . . . . . . Parts Melted 4 | . 4 . . . . . . . . . . . . . . . . . . . . . . . . . . . . Heat Transferred 1434 | . 962 . . . 422 . . . . . . . . . . . . . . . . . 50 . . . . . . Parts Sabotaged . | . . . . . . . . . . . . . . . . . . . . . . . . . . . . . . Parts Stolen . | . . . . . . . . . . . . . . . . . . . . . . . . . . . . . . Parts Stripped . | . . . . . . . . . . . . . . . . . . . . . . . . . . . . . . Power Chain Reactions 1 | . . . . . 1 . . . . . . . . . . . . . . . . . . . . . . . . Missiles Intercepted . | . . . . . . . . . . . . . . . . . . . . . . . . . . . . . . Alert | -11 -10 -10 -10 -9 -8 -7 -7 -7 -7 -7 -7 -6 -6 -6 -6 -5 -5 -5 -5 -4 -4 -4 -4 -4 -4 -4 -3 -3 -3 ------- Run | Jun Mat Min Exi Min Mat Fac Was Fac Low Low Dat Pro Fac Was Fac Fac Upp Upp War Pro Fac Was Fac Upp Upp Zhi Pro Res Arm Peak Influence 685 | . 136 152 . 140 214 238 76 95 . . . . 95 9 685 263 . . . . 205 75 444 . . . . 407 414 Initial 149 | . . 2 . . 27 96 61 49 . . . . 88 9 6 149 . . . . . 60 52 . . . . . 58 Average 95 | . 46 50 . 53 48 119 68 33 . . . . 50 9 298 135 . . . . 78 71 254 . . . . 147 221 Maximum Alert Level 2 | . . . . . 1 1 . . . . . . . . 2 1 . . . . 1 . 2 . . . . 2 2 Low Security (%) 86 | 100 100 100 . 100 96 93 100 100 . . . . 100 100 48 78 . . . . 95 100 27 . . . . 69 36 Level 1 12 | . . . . . 3 6 . . . . . . . . 6 21 . . . . 4 . 61 . . . . 29 56 Level 2 1 | . . . . . . . . . . . . . . . 45 . . . . . . . 10 . . . . . 6 Level 3 . | . . . . . . . . . . . . . . . . . . . . . . . . . . . . . . Level 4 . | . . . . . . . . . . . . . . . . . . . . . . . . . . . . . . Level 5 . | . . . . . . . . . . . . . . . . . . . . . . . . . . . . . . High Security . | . . . . . . . . . . . . . . . . . . . . . . . . . . . . . . Max Security . | . . . . . . . . . . . . . . . . . . . . . . . . . . . . . . Squads Dispatched 37 | . 4 . . . 4 2 . 3 . . . 1 3 . 1 4 . . . . 3 . 2 . . . . 5 5 Investigation 6 | . 1 . . . . 1 . . . . . . 2 . . . . . . . . . . . . . . 1 1 Extermination 14 | . . . . . . 1 . 2 . . . . . . 1 2 . . . . 3 . 1 . . . . 3 1 Reinforcement 15 | . 3 . . . 3 . . 1 . . . . 1 . . 2 . . . . . . 1 . . . . 1 3 Assault 1 | . . . . . . . . . . . . 1 . . . . . . . . . . . . . . . . . Garrison 1 | . . . . . 1 . . . . . . . . . . . . . . . . . . . . . . . . Intercept . | . . . . . . . . . . . . . . . . . . . . . . . . . . . . . . Searches Triggered 1 | . . . . . . . . . . . . . . . 1 . . . . . . . . . . . . . . Data Miner Redirects 6 | . . . . . . . . . . . . . 3 . . . . . . . . . 1 . . . . 1 1 Construction Impeded 2 | . . . . . 1 . . . . . . . . . . . . . . . . . 1 . . . . . . Haulers Reinforced . | . . . . . . . . . . . . . . . . . . . . . . . . . . . . . . Active Scanning Responses . | . . . . . . . . . . . . . . . . . . . . . . . . . . . . . . Cargo Convoy Interrupts 2 | . . . . . . . . . . . . . . . . . . . . . . . 1 . . . . 1 . Stealth | -11 -10 -10 -10 -9 -8 -7 -7 -7 -7 -7 -7 -6 -6 -6 -6 -5 -5 -5 -5 -4 -4 -4 -4 -4 -4 -4 -3 -3 -3 --------- Run | Jun Mat Min Exi Min Mat Fac Was Fac Low Low Dat Pro Fac Was Fac Fac Upp Upp War Pro Fac Was Fac Upp Upp Zhi Pro Res Arm Distress Signals 14 | . . . . . 4 1 . . . . . . . . . . . . . . 1 . 1 . . . . 1 6 Communications Jammed 29 | . . . . . . . . . . . . . . . . 2 . . . . . . . . . . . 27 . Distress Signals 29 | . . . . . . . . . . . . . . . . 2 . . . . . . . . . . . 27 . Times Spotted 356 | . 17 8 . 8 48 26 6 6 6 . . 22 5 5 19 28 2 6 . 1 22 4 29 4 . . 5 51 28 Peak Tracking Total 16 | . 3 3 . 3 4 5 5 2 4 . . 11 5 5 9 4 3 4 . 1 5 4 15 5 . . 4 4 16 Tactical Retreats 58 | . . . . 1 3 9 . 1 3 . . 4 2 . 6 3 1 3 . . 3 . 6 2 . . 1 6 4 Traps | -11 -10 -10 -10 -9 -8 -7 -7 -7 -7 -7 -7 -6 -6 -6 -6 -5 -5 -5 -5 -4 -4 -4 -4 -4 -4 -4 -3 -3 -3 ------- Run | Jun Mat Min Exi Min Mat Fac Was Fac Low Low Dat Pro Fac Was Fac Fac Upp Upp War Pro Fac Was Fac Upp Upp Zhi Pro Res Arm Traps Triggered 27 | . 4 . . 1 . 4 . 1 . . . . 3 . . 6 . . . . 3 . 2 . . . . 3 . Indirectly . | . . . . . . . . . . . . . . . . . . . . . . . . . . . . . . Trap Hack Attempts . | . . . . . . . . . . . . . . . . . . . . . . . . . . . . . . Triggered . | . . . . . . . . . . . . . . . . . . . . . . . . . . . . . . Disarmed . | . . . . . . . . . . . . . . . . . . . . . . . . . . . . . . Reprogrammed . | . . . . . . . . . . . . . . . . . . . . . . . . . . . . . . Reused . | . . . . . . . . . . . . . . . . . . . . . . . . . . . . . . Traps Extracted . | . . . . . . . . . . . . . . . . . . . . . . . . . . . . . . Installed . | . . . . . . . . . . . . . . . . . . . . . . . . . . . . . . Triggered 13 | . . . . . . . . . . . . . . . . . . 2 8 . . . . . 1 . . 2 . Machines | -11 -10 -10 -10 -9 -8 -7 -7 -7 -7 -7 -7 -6 -6 -6 -6 -5 -5 -5 -5 -4 -4 -4 -4 -4 -4 -4 -3 -3 -3 ---------- Run | Jun Mat Min Exi Min Mat Fac Was Fac Low Low Dat Pro Fac Was Fac Fac Upp Upp War Pro Fac Was Fac Upp Upp Zhi Pro Res Arm Machines Disabled 12 | . 1 . . . 2 . . . . . . 1 . . . . 1 . . . . . 6 . . . . . 1 Max in Single Turn 6 | . 1 . . . 1 . . . . . . 1 . . . . 1 . . . . . 6 . . . . . 1 Garrison Access 12 | . . . . . 1 2 . 2 . . . . . . 1 4 . . . . . . . . . . . 2 . Machines Repaired . | . . . . . . . . . . . . . . . . . . . . . . . . . . . . . . Machines Sabotaged . | . . . . . . . . . . . . . . . . . . . . . . . . . . . . . . Overloaded Fab Kills . | . . . . . . . . . . . . . . . . . . . . . . . . . . . . . . Hacking | -11 -10 -10 -10 -9 -8 -7 -7 -7 -7 -7 -7 -6 -6 -6 -6 -5 -5 -5 -5 -4 -4 -4 -4 -4 -4 -4 -3 -3 -3 --------- Run | Jun Mat Min Exi Min Mat Fac Was Fac Low Low Dat Pro Fac Was Fac Fac Upp Upp War Pro Fac Was Fac Upp Upp Zhi Pro Res Arm Machines Accessed 133 | . 7 . 1 1 17 11 . 17 2 1 4 1 5 . 4 22 1 . 4 . 5 . 4 . . 9 . 14 3 Terminals 62 | . 5 . . . 10 8 . 7 . . . . 2 . 3 7 1 . . . 5 . 3 . . . . 9 2 Fabricators 8 | . . . . . . . . 1 . . . . 2 . . 2 . . . . . . . . . . . 2 1 Repair Stations 7 | . 1 . . . 2 . . 1 . . . . . . . 3 . . . . . . . . . . . . . Recycling Units 9 | . 1 . . . 2 . . 3 . . . . 1 . . 2 . . . . . . . . . . . . . Scanalyzers 9 | . . . . . 2 . . 3 . . . . . . . 4 . . . . . . . . . . . . . Garrison Access 15 | . . . . . 1 3 . 2 . . . . . . 1 4 . . . . . . 1 . . . . 3 . Total Hacks 380 | . 21 . 1 1 45 40 . 32 2 1 29 1 9 . 13 55 1 . 8 . 15 . 13 . . 48 . 37 8 Successful 268 | . 11 . 1 1 36 19 . 23 2 1 29 1 8 . 9 40 1 . 8 . 6 . 4 . . 48 . 17 3 Failed 109 | . 9 . . . 8 20 . 9 . . . . 1 . 4 15 . . . . 9 . 9 . . . . 20 5 Catastrophic 17 | . . . . . 1 4 . . . . . . . . 1 4 . . . . 2 . 1 . . . . 2 2 Database Lockouts 3 | . 1 . . . 1 1 . . . . . . . . . . . . . . . . . . . . . . . Manual 127 | . 15 . . . 20 20 . 8 . . . . 3 . 5 19 . . 1 . 12 . 7 . . . . 13 4 Terminals 198 | . 19 . . . 31 33 . 16 . . . . 4 . 11 27 1 . . . 15 . 11 . . . . 25 5 Fabricators 17 | . . . . . . . . 1 . . . . 4 . . 2 . . . . . . . . . . . 7 3 Repair Stations 19 | . 1 . . . 6 . . 2 . . . . . . . 10 . . . . . . . . . . . . . Recycling Units 11 | . 1 . . . 3 . . 3 . . . . 1 . . 3 . . . . . . . . . . . . . Scanalyzers 19 | . . . . . 4 . . 6 . . . . . . . 9 . . . . . . . . . . . . . Garrison Access 25 | . . . . . 1 7 . 4 . . . . . . 2 4 . . . . . . 2 . . . . 5 . Terminal Hacks 155 | . 5 . 1 1 14 11 . 5 2 1 29 1 2 . 5 11 1 . 8 . 1 . 2 . . 48 . 6 1 Record 56 | . . . 1 . . . . . . . 11 1 . . . . 1 . 6 . . . . . . 36 . . . Part Schematic 22 | . . . . . 1 2 . . . . 11 . . . . 3 . . . . . . 1 . . 4 . . . Robot Schematic 4 | . . . . . . . . . . . 4 . . . . . . . . . . . . . . . . . . Robot Analysis 10 | . 1 . . . 2 3 . . . . . . . . . . . . . . . . . . . 4 . . . Prototype ID Bank 11 | . . . . . . 1 . 1 . . 3 . . . 1 1 . . . . . . . . . 4 . . . Open Door 6 | . . . . 1 . . . . 2 1 . . . . . . . . 2 . . . . . . . . . . Open DSF 2 | . . . . . . . . 1 . . . . . . . . . . . . . . . . . . . 1 . Level Access Points 1 | . . . . . . . . . . . . . . . 1 . . . . . . . . . . . . . . Branch Access Points 5 | . . . . . 1 . . 1 . . . . . . . 1 . . . . . . . . . . . 1 1 Machine Index 1 | . . . . . . 1 . . . . . . . . . . . . . . . . . . . . . . . Terminal Index 1 | . . . . . . . . . . . . . 1 . . . . . . . . . . . . . . . . Scanalyzer Index 1 | . 1 . . . . . . . . . . . . . . . . . . . . . . . . . . . . Garrison Index 2 | . . . . . . . . . . . . . . . 1 1 . . . . . . . . . . . . . Alert Level 5 | . . . . . 2 1 . . . . . . . . . 1 . . . . . . . . . . . 1 . Unreport Threat 6 | . 1 . . . 3 . . . . . . . . . . . . . . . . . . . . . . 2 . Locate Traps 17 | . 1 . . . 3 3 . 2 . . . . 1 . 1 3 . . . . 1 . 1 . . . . 1 . Hauler Manifests 2 | . 1 . . . 1 . . . . . . . . . . . . . . . . . . . . . . . . Zone Layout 3 | . . . . . 1 . . . . . . . . . 1 1 . . . . . . . . . . . . . Fabricator Hacks 10 | . . . . . . . . 1 . . . . 4 . . . . . . . . . . . . . . 3 2 Load Schematic 5 | . . . . . . . . . . . . . 2 . . . . . . . . . . . . . . 2 1 Build 5 | . . . . . . . . 1 . . . . 2 . . . . . . . . . . . . . . 1 1 Repair Station Hacks 15 | . . . . . 5 . . 2 . . . . . . . 8 . . . . . . . . . . . . . Scan Component 8 | . . . . . 3 . . 1 . . . . . . . 4 . . . . . . . . . . . . . Repair 7 | . . . . . 2 . . 1 . . . . . . . 4 . . . . . . . . . . . . . Recycling Unit Hacks 11 | . 1 . . . 3 . . 3 . . . . 1 . . 3 . . . . . . . . . . . . . Report Inventory 10 | . 1 . . . 3 . . 3 . . . . 1 . . 2 . . . . . . . . . . . . . Retrieve Matter 1 | . . . . . . . . . . . . . . . . 1 . . . . . . . . . . . . . Scanalyzer 14 | . . . . . 3 . . 6 . . . . . . . 5 . . . . . . . . . . . . . Insert Component 8 | . . . . . 2 . . 3 . . . . . . . 3 . . . . . . . . . . . . . Analyze 6 | . . . . . 1 . . 3 . . . . . . . 2 . . . . . . . . . . . . . Garrison Access Hacks 12 | . . . . . 1 2 . 2 . . . . . . 1 4 . . . . . . . . . . . 2 . Seal Access 12 | . . . . . 1 2 . 2 . . . . . . 1 4 . . . . . . . . . . . 2 . Unauthorized Hacks 51 | . 5 . . . 10 6 . 4 . . . . 1 . 3 9 . . . . 5 . 2 . . . . 6 . Terminals 48 | . 5 . . . 10 6 . 4 . . . . 1 . 3 7 . . . . 5 . 2 . . . . 5 . Track 12 | . 2 . . . 4 1 . 1 . . . . . . 1 2 . . . . 1 . . . . . . . . Assimilate 4 | . . . . . . . . 2 . . . . . . . . . . . . 1 . . . . . . 1 . Botnet 31 | . 3 . . . 6 4 . 1 . . . . 1 . 2 5 . . . . 3 . 2 . . . . 4 . Operators 1 | . . . . . . 1 . . . . . . . . . . . . . . . . . . . . . . . Fabricators 3 | . . . . . . . . . . . . . . . . 2 . . . . . . . . . . . 1 . Fabnet 3 | . . . . . . . . . . . . . . . . 2 . . . . . . . . . . . 1 . Repair Stations . | . . . . . . . . . . . . . . . . . . . . . . . . . . . . . . Recycling Units . | . . . . . . . . . . . . . . . . . . . . . . . . . . . . . . Scanalyzers . | . . . . . . . . . . . . . . . . . . . . . . . . . . . . . . Garrison Access . | . . . . . . . . . . . . . . . . . . . . . . . . . . . . . . Data Cores Recovered 4 | . . . . . . . . . . . . . . . . 2 . . . . 1 . . . . . . . 1 Used 1 | . . . . . . . . . . . . . . . . 1 . . . . . . . . . . . . . Hacking Detections 88 | . 6 . . . 13 10 . 13 . . . . 4 . 4 14 . . . . 5 . 4 . . . . 12 3 Full Trace Events 5 | . . . . . . 1 . . . . . . 2 . . . . . . . . . . . . . . 1 1 Feedback Events . | . . . . . . . . . . . . . . . . . . . . . . . . . . . . . . Feedback Blocked . | . . . . . . . . . . . . . . . . . . . . . . . . . . . . . . Robot Schematics Acquired 4 | . . . . . . . . . . . 4 . . . . . . . . . . . . . . . . . . Robots Built . | . . . . . . . . . . . . . . . . . . . . . . . . . . . . . . Authchips . | . . . . . . . . . . . . . . . . . . . . . . . . . . . . . . Time . | . . . . . . . . . . . . . . . . . . . . . . . . . . . . . . Total Robot Build Rating . | . . . . . . . . . . . . . . . . . . . . . . . . . . . . . . Part Schematics Acquired 27 | . . . . . 1 2 . 3 . . 11 . . . . 5 . . . . . . 1 . . 4 . . . Parts Built 8 | . . . . . . . . 2 . . . . 4 . . . . . . . . . . . . . . 1 1 Authchips . | . . . . . . . . . . . . . . . . . . . . . . . . . . . . . . Time 384 | . . . . . . . . 58 . . . . 175 . . . . . . . . . . . . . . 58 93 Total Part Build Rating 56 | . . . . . . . . 14 . . . . 28 . . . . . . . . . . . . . . 7 7 Parts Repaired 7 | . . . . . 2 . . 1 . . . . . . . 4 . . . . . . . . . . . . . Time 446 | . . . . . 152 . . 54 . . . . . . . 240 . . . . . . . . . . . . . Parts Recycled . | . . . . . . . . . . . . . . . . . . . . . . . . . . . . . . Recycled Matter . | . . . . . . . . . . . . . . . . . . . . . . . . . . . . . . Retrieved Matter . | . . . . . . . . . . . . . . . . . . . . . . . . . . . . . . Retrieved Components . | . . . . . . . . . . . . . . . . . . . . . . . . . . . . . . Parts Scanalyzed 7 | . . . . . 1 . . 3 . . . . . . . 3 . . . . . . . . . . . . . Part Schematics Acquired 5 | . . . . . . . . 3 . . . . . . . 2 . . . . . . . . . . . . . Parts Damaged 1 | . . . . . . . . . . . . . . . . 1 . . . . . . . . . . . . . Bothacking | -11 -10 -10 -10 -9 -8 -7 -7 -7 -7 -7 -7 -6 -6 -6 -6 -5 -5 -5 -5 -4 -4 -4 -4 -4 -4 -4 -3 -3 -3 ------------ Run | Jun Mat Min Exi Min Mat Fac Was Fac Low Low Dat Pro Fac Was Fac Fac Upp Upp War Pro Fac Was Fac Upp Upp Zhi Pro Res Arm Used RIF Installer . | . . . . . . . . . . . . . . . . . . . . . . . . . . . . . . Robots Hacked 3 | . . . . . . . . . . . . . . . . . . . . . . . 2 . . . . 1 . Non-combat . | . . . . . . . . . . . . . . . . . . . . . . . . . . . . . . Combat 3 | . . . . . . . . . . . . . . . . . . . . . . . 2 . . . . 1 . Robot Hacks Applied . | . . . . . . . . . . . . . . . . . . . . . . . . . . . . . . Relay Couplers Released 4 | . . . . . . . . . . . . . . . . . . . . . . . . . . . . 4 . Programmers 4 | . . . . . . . . . . . . . . . . . . . . . . . . . . . . 4 . Fabnet Peak Effective % 6 | . . . . . . . . . . . . . . . . . . . . 6 6 6 6 6 6 6 2 2 2 Autooverrided 3 | . . . . . . . . . . . . . . . . . . . . . . . 2 . . . . 1 . Robots Rewired 4 | . . . . . . . . . . . . . . . . . . . . . . . . . . . . . 4 Allies Hacked 1 | . . . . . . . . 1 . . . . . . . . . . . . . . . . . . . . . Hacks Repelled . | . . . . . . . . . . . . . . . . . . . . . . . . . . . . . . Allies | -11 -10 -10 -10 -9 -8 -7 -7 -7 -7 -7 -7 -6 -6 -6 -6 -5 -5 -5 -5 -4 -4 -4 -4 -4 -4 -4 -3 -3 -3 -------- Run | Jun Mat Min Exi Min Mat Fac Was Fac Low Low Dat Pro Fac Was Fac Fac Upp Upp War Pro Fac Was Fac Upp Upp Zhi Pro Res Arm Total Allies 16 | . . 5 . . . . 1 1 . . . 1 . . . . . . . . . . 2 . . . . 2 4 Largest Group 5 | . . 5 5 3 1 . 1 1 . . . 1 . . . . . . . . . . 1 . . . . 1 4 Highest-Rated Group 224 | . . 92 92 40 8 . 31 26 . . . 96 . . . . . . . . . . 54 . . . . 82 224 Highest-Rated Ally 96 | . . 31 31 16 8 . 31 26 . . . 96 . . . . . . . . . . 54 . . . . 82 56 Total Orders 3 | . . . . . . . . . . . . . . . . . . . . . . . . . . . . . 3 ROAM 3 | . . . . . . . . . . . . . . . . . . . . . . . . . . . . . 3 Ally Attacks 92 | . . 9 . 20 2 . 14 . . . . 4 . . . . . . . . . . . . . . . 3 40 Total Damage 2306 | . . 74 . 165 12 . 227 . . . . 312 . . . . . . . . . . . . . . . 29 1487 Kills 16 | . . 3 . 3 . . 1 . . . . 2 . . . . . . . . . . . . . . . . 7 Allies Corrupted . | . . . . . . . . . . . . . . . . . . . . . . . . . . . . . . Allies Melted 2 | . . . . . . . . . 1 . . 1 . . . . . . . . . . . . . . . . . Intel | -11 -10 -10 -10 -9 -8 -7 -7 -7 -7 -7 -7 -6 -6 -6 -6 -5 -5 -5 -5 -4 -4 -4 -4 -4 -4 -4 -3 -3 -3 ------- Run | Jun Mat Min Exi Min Mat Fac Was Fac Low Low Dat Pro Fac Was Fac Fac Upp Upp War Pro Fac Was Fac Upp Upp Zhi Pro Res Arm Robot Analysis Total 10 | . 1 . . . 2 3 . . . . . . . . . . . . . . . . . . . 4 . . . Derelict Logs Recovered 13 | . . 1 . 2 . . . . 1 1 . 1 . . . . 1 1 . 1 . . . 1 3 . . . . Drone Launches . | . . . . . . . . . . . . . . . . . . . . . . . . . . . . . . Drone Recoveries . | . . . . . . . . . . . . . . . . . . . . . . . . . . . . . . Exploration | -11 -10 -10 -10 -9 -8 -7 -7 -7 -7 -7 -7 -6 -6 -6 -6 -5 -5 -5 -5 -4 -4 -4 -4 -4 -4 -4 -3 -3 -3 ------------- Run | Jun Mat Min Exi Min Mat Fac Was Fac Low Low Dat Pro Fac Was Fac Fac Upp Upp War Pro Fac Was Fac Upp Upp Zhi Pro Res Arm Turns Passed 30142 | 3 1903 752 271 709 6400 1778 90 1647 366 638 171 2075 791 92 412 2883 1100 362 309 384 1449 36 1247 164 136 117 910 2458 489 Spaces Moved 26937 | 1 720 557 257 498 1662 2300 170 1876 640 854 100 990 1026 145 540 3332 1225 656 746 480 1649 78 1853 380 320 227 625 2429 601 Core 52 | . . . . . . . . . . . . . . . . . . . . . . . . . . . . . 52 Treads 1270 | 1 467 . . . 800 2 . . . . . . . . . . . . . . . . . . . . . . . Legs . | . . . . . . . . . . . . . . . . . . . . . . . . . . . . . . Wheels 2427 | . 253 557 257 498 862 . . . . . . . . . . . . . . . . . . . . . . . . Hover 21586 | . . . . . . 2298 170 1876 640 854 100 990 1026 145 540 3332 1225 656 746 480 1649 78 1853 380 320 227 625 1376 . Flight 1602 | . . . . . . . . . . . . . . . . . . . . . . . . . . . . 1053 549 Fastest Speed 28 | 160 105 105 105 105 90 43 43 43 43 43 43 43 44 44 44 42 42 42 35 35 35 35 28 30 36 30 31 31 35 Average Speed 53 | 160 140 105 105 105 132 44 43 43 43 43 43 49 53 44 46 43 42 42 37 35 41 35 35 35 36 34 31 40 37 Slowest Speed 250 | 160 240 105 105 105 250 166 43 43 105 43 43 240 120 44 48 48 42 42 92 35 92 35 102 98 36 98 31 197 200 Overloaded Moves . | . . . . . . . . . . . . . . . . . . . . . . . . . . . . . . Propulsion Burnouts . | . . . . . . . . . . . . . . . . . . . . . . . . . . . . . . Robots Hopped 7 | . . . . . . . . . . . . . . . . . . . . . . . . . . . . 5 2 Cave-ins Triggered 1 | . . . . . . . . . . . . . . . 1 . . . . . . . . . . . . . . Teleports 1 | . . . . . . . . . . . . . . . . . . . . . . . . . . 1 . . . Exploration Rate (%) 63 | 2 97 100 68 99 99 43 85 46 64 77 78 66 23 78 24 62 76 80 84 56 26 86 37 62 59 63 62 57 32 Regions Visited 29 Branch Regions 16 Pre-discovered Areas 8 | . . . 1 1 . . . . . . 1 . . . . . . . . 1 . . . 1 . 3 . . . Known Exits Taken 18 | . . . . . 1 . . 1 1 1 1 1 . . 1 1 1 1 1 1 . . 1 1 1 1 1 1 . Unknown Exits Taken 5 | 1 1 1 1 1 . . . . . . . . . . . . . . . . . . . . . . . . . Scrap Searched 25 | . . 1 . 1 . . . . 4 3 . 5 . . . . 2 2 . 1 . . . 3 1 . 2 . . Spaces Dug 304 | . . . . . . 14 . 17 . 3 . 3 10 . 8 46 41 . . 3 20 . 35 . . . 5 95 4 Terrain Destroyed 665 | . . . . . 6 14 . 17 21 3 . 137 10 . 8 46 156 10 . 3 20 . 70 . . . 5 134 5 Melee 206 | . . . . . . 14 . 17 . 3 . 3 10 . 8 46 3 . . 3 20 . 35 . . . 5 35 4 Projectile 1 | . . . . . . . . . . . . . . . . . . . . . . . . . . . . . 1 AOE 458 | . . . . . 6 . . . 21 . . 134 . . . . 153 10 . . . . 35 . . . . 99 . Terrain Rammed . | . . . . . . . . . . . . . . . . . . . . . . . . . . . . . . Walls Destroyed . | . . . . . . . . . . . . . . . . . . . . . . . . . . . . . . Machines Disabled . | . . . . . . . . . . . . . . . . . . . . . . . . . . . . . . Actions | -11 -10 -10 -10 -9 -8 -7 -7 -7 -7 -7 -7 -6 -6 -6 -6 -5 -5 -5 -5 -4 -4 -4 -4 -4 -4 -4 -3 -3 -3 --------- Run | Jun Mat Min Exi Min Mat Fac Was Fac Low Low Dat Pro Fac Was Fac Fac Upp Upp War Pro Fac Was Fac Upp Upp Zhi Pro Res Arm Total 41531 | 2 1530 701 258 667 5640 2999 185 2673 722 1120 227 2551 1242 172 675 4638 1787 734 776 690 2349 86 2324 408 340 264 1311 3645 815 Wait 13100 | . 724 125 . 154 3753 614 15 736 62 259 128 1511 169 26 106 1099 540 73 6 204 603 9 352 27 19 11 672 958 145 Move 26898 | . 719 556 256 497 1661 2300 169 1875 639 853 99 989 1026 144 539 3331 1224 655 745 479 1649 77 1852 379 319 226 624 2418 598 Hop 6 | . . . . . . . . . . . . . . . . . . . . . . . . . . . . 5 1 Pick Up 156 | . 13 . . 3 23 11 . 5 3 3 . 3 14 1 3 20 1 . 6 1 5 . 9 1 1 5 2 20 3 Fast Attach 105 | . 9 . . 1 15 5 . 1 1 . . 2 6 . . 14 . . 5 . 9 . 8 . . 6 . 19 4 Attach 75 | . . . 2 . 7 3 . 1 5 . . 6 4 . 6 2 . . 2 . 4 . 4 . . 4 . 22 3 Detach 44 | . 3 2 . . 7 3 . . 3 . . . 2 . 1 3 . . 1 . 2 . 1 1 . 1 . 14 . Swap 175 | 2 4 1 . 1 17 9 1 12 2 . . 20 3 1 1 19 7 2 . 2 16 . 22 . . 3 1 27 2 Drop 178 | . 13 2 . 1 32 14 . 9 2 2 . 4 4 . . 26 1 . 11 1 7 . 14 . 1 8 . 23 3 Fire 225 | . 44 15 . 10 123 . . . 2 . . 9 . . . . 10 1 . . . . 5 . . . . 4 2 Melee 477 | . . . . . . 27 . 21 3 3 . 7 14 . 19 95 4 3 . 3 54 . 57 . . . 12 135 20 Ram 2 | . . . . . 2 . . . . . . . . . . . . . . . . . . . . . . . . Kick . | . . . . . . . . . . . . . . . . . . . . . . . . . . . . . . Crush 1 | . 1 . . . . . . . . . . . . . . . . . . . . . . . . . . . . Escape Stasis 55 | . . . . . . 13 . 13 . . . . . . . 29 . . . . . . . . . . . . . Rewire 34 | . . . . . . . . . . . . . . . . . . . . . . . . . . . . . 34 Trap . | . . . . . . . . . . . . . . . . . . . . . . . . . . . . . . Miscellaneous . | . . . . . . . . . . . . . . . . . . . . . . . . . . . . . . Route ------- -11/Junkyard -10/Materials (discovered 4 exits: [*Mat x3] / [*Min]) -10/Mines (discovered 4 exits: [*Mat x2] / *Exi / [*Sub]) -10/Exiles -9/Mines (discovered 2 exits: *Mat x2) -8/Materials (discovered 3 exits: *Fac x3) -7/Factory (discovered 3 exits: *Fac x2 / *Low) -7/Waste -7/Factory (discovered 4 exits: *Fac x2 / *Low x2) -7/Lower Caves -7/Lower Caves (discovered 2 exits: *Fac / *Dat) -7/Data Miner -6/Proximity Caves -6/Factory -6/Waste -6/Factory (discovered 4 exits: *Fac x4) -5/Factory (discovered 6 exits: *Fac x4 / *Upp x2) -5/Upper Caves -5/Upper Caves (discovered 2 exits: *Fac / *War) -5/Warlord -4/Proximity Caves -4/Factory (discovered 4 exits: Upp x2 / *Ext x2) -4/Waste -4/Factory -4/Upper Caves -4/Upper Caves (discovered 2 exits: *Res / *Zhi) -4/Zhirov -3/Proximity Caves -3/Research (discovered 3 exits: *Arm / Tes x2) -3/Armory History --------- Turn | Location | Event 4 | -11/Junkyard | Discovered new exit (range 0) 4 | -11/Junkyard | Entered Materials 309 | -10/Materials | Build established: Mutant 1182 | -10/Materials | Discovered new exit (range 15) 1201 | -10/Materials | Central database locked down 1598 | -10/Materials | Discovered new exit (range 10) 1679 | -10/Materials | Discovered new exit (range 16) 1841 | -10/Materials | Discovered new exit (range 6) 1907 | -10/Materials | Entered Mines 2030 | -10/Mines | Discovered new exit (range 15) 2160 | -10/Mines | Discovered new exit (range 9) 2218 | -10/Mines | Received a Rocket Launcher from a helpful Derelict 2444 | -10/Mines | Learned location of 1 exit from Materials 2444 | -10/Mines | Assisted by bots powering up and referring to "LRC-V3" 2564 | -10/Mines | Discovered new exit (range 9) 2617 | -10/Mines | Deemed a non-threat by the Exiles lab entrance 2650 | -10/Mines | Discovered new exit (range 5) 2659 | -10/Mines | Entered Exiles 2659 | -10/Exiles | Accompanied by 5 allies 2686 | -10/Exiles | Met 8R-AWN 2689 | -10/Exiles | Led the pair of lost Derelicts to a safe place 2704 | -10/Exiles | Met EX-HEX 2733 | -10/Exiles | Met EX-BIN 2750 | -10/Exiles | Met EX-DEC 2759 | -10/Exiles | Learned location of Zion (-6) 2801 | -10/Exiles | Visited The Gauntlet 2914 | -10/Exiles | Discovered new exit (range 14) 2930 | -10/Exiles | Entered Mines 2930 | -9/Mines | Accompanied by 3 allies 2939 | -9/Mines | Met a Derelict who couldn't figure out how to use a Trap Extractor 2940 | -9/Mines | Core integrity fell below 50% 3522 | -9/Mines | Discovered new exit (range 14) 3526 | -9/Mines | Found a damaged Exp. Sensor Array with a note attached 3529 | -9/Mines | Found Prototype Device 3585 | -9/Mines | Discovered new exit (range 15) 3639 | -9/Mines | Entered Materials 3639 | -8/Materials | Accompanied by 1 ally 3639 | -8/Materials | Evolved 4 slots: Propulsion x1, Utility x3 3640 | -8/Materials | Identified exit to Factory 4221 | -8/Materials | Identified Exp. Sensor Array 4239 | -8/Materials | Discovered exit to Factory (range 8) 5845 | -8/Materials | Lost 3 parts (1p2u) 6041 | -8/Materials | Found Prototype Device 6041 | -8/Materials | Identified Active Sensor Suite 6331 | -8/Materials | Build established: Scavenger-Mutant 6437 | -8/Materials | Core integrity fell below 50% 6929 | -8/Materials | Garrison activated, responded to threat 9597 | -8/Materials | Central database locked down 9778 | -8/Materials | Repaired Spear 9796 | -8/Materials | Discovered exit to Factory (range 16) 9996 | -8/Materials | Repaired Exp. Sensor Array 10039 | -8/Materials | Entered Factory 10039 | -7/Factory | Evolved 2 slots: Propulsion x1, Utility x1 10119 | -7/Factory | Discovered new exit (range 8) 10123 | -7/Factory | Identified exit to Lower Caves 10239 | -7/Factory | Discovered new exit (range 14) 10348 | -7/Factory | Build established: Mutant 10464 | -7/Factory | Central database locked down 10658 | -7/Factory | Build established: Hacker-Mutant 10844 | -7/Factory | Discovered new exit (range 16) 11817 | -7/Factory | Sucked down chute 11817 | -7/Factory | Entered Waste 11818 | -7/Waste | Met a frightened Derelict 11827 | -7/Waste | Spotted C-40 Crusher 11832 | -7/Waste | EMP discharged 11836 | -7/Waste | Spotted C-40 Crusher 11851 | -7/Waste | Spotted C-40 Crusher 11852 | -7/Waste | Spotted C-40 Crusher 11867 | -7/Waste | Spotted C-40 Crusher 11893 | -7/Waste | Spotted C-40 Crusher 11903 | -7/Waste | Discovered new exit (range 10) 11906 | -7/Waste | Identified exit to Factory 11907 | -7/Waste | Entered Factory 11919 | -7/Factory | Identified exit to DSF 12294 | -7/Factory | Build established: Hacker-Scout 12659 | -7/Factory | Discovered new exit (range 16) 12752 | -7/Factory | Fabricated Imp. Antigrav System (x2) 13009 | -7/Factory | Discovered new exit (range 4) 13010 | -7/Factory | Identified exit to Factory 13142 | -7/Factory | Repaired Exp. Sensor Array? 13554 | -7/Factory | Entered Lower Caves 13621 | -7/Lower Caves | Learned Factory emergency access door positions 13725 | -7/Lower Caves | Spotted B-75 Beast 13754 | -7/Lower Caves | Encountered a Warlord checkpoint 13754 | -7/Lower Caves | Discovered new exit (range 4) 13756 | -7/Lower Caves | Identified exit to Lower Caves 13920 | -7/Lower Caves | Entered another Lower Caves area 13942 | -7/Lower Caves | Discovered exit to Factory (range 11) 14421 | -7/Lower Caves | Discovered new exit (range 8) 14424 | -7/Lower Caves | Identified exit to Data Miner 14440 | -7/Lower Caves | Encountered a Warlord checkpoint 14450 | -7/Lower Caves | Learned Factory terminal intel 14558 | -7/Lower Caves | Entered Data Miner 14558 | -7/Data Miner | Discovered new exit (range 6) 14565 | -7/Data Miner | Met Data Miner 14583 | -7/Data Miner | Learned location of Section 7 (-2) 14583 | -7/Data Miner | Acquired the access code to Warlord's prototype stash 14592 | -7/Data Miner | Received God Mode back door access code from Data Miner 14714 | -7/Data Miner | Identified exit to Proximity Caves 14729 | -7/Data Miner | Entered Proximity Caves 16468 | -6/Proximity Caves | Found Alien Artifact 16469 | -6/Proximity Caves | Identified Dimensional Node Initializer 16469 | -6/Proximity Caves | Initialized slip node 16496 | -6/Proximity Caves | Learned 8 Factory zone layouts 16599 | -6/Proximity Caves | Attracted the attention of an 0b10 outpost 16682 | -6/Proximity Caves | Lost 6 parts (1p4n1w) 16779 | -6/Proximity Caves | Attracted the attention of an 0b10 checkpoint 16790 | -6/Proximity Caves | Discovered exit to Factory (range 12) 16804 | -6/Proximity Caves | Entered Factory 16804 | -6/Factory | Evolved 2 slots: Power x1, Propulsion x1 16807 | -6/Factory | Loaded intel: 26 terminal locations 16915 | -6/Factory | Build established: Hacker-Mutant 17061 | -6/Factory | Incoming investigation squad redirected 17090 | -6/Factory | Fabricated Imp. Antigrav System? 17150 | -6/Factory | Discovered new exit (range 6) 17152 | -6/Factory | Identified exit to Factory 17371 | -6/Factory | Incoming investigation squad redirected 17466 | -6/Factory | Fabricated Imp. Antigrav System? 17502 | -6/Factory | Assembled infested ambush trap array 17527 | -6/Factory | Incoming assault squad redirected 17595 | -6/Factory | Sucked down chute 17595 | -6/Factory | Entered Waste 17603 | -6/Waste | Spotted C-40 Crusher 17610 | -6/Waste | EMP discharged 17616 | -6/Waste | Spotted C-40 Crusher 17616 | -6/Waste | Spotted C-40 Crusher 17616 | -6/Waste | Spotted C-40 Crusher 17660 | -6/Waste | Spotted C-40 Crusher 17669 | -6/Waste | Spotted C-40 Crusher 17678 | -6/Waste | Discovered new exit (range 12) 17687 | -6/Waste | Identified exit to Factory 17687 | -6/Waste | Entered Factory 18035 | -6/Factory | Crushed by falling debris 18037 | -6/Factory | Search patrols dispatched 18066 | -6/Factory | Lost 3 parts (1n2u) 18099 | -6/Factory | Entered another Factory area 18099 | -5/Factory | Evolved 2 slots: Propulsion x1, Utility x1 18193 | -5/Factory | Identified exit to Upper Caves 18664 | -5/Factory | Discovered new exit (range 14) 18682 | -5/Factory | Identified exit to Factory 18757 | -5/Factory | Repaired Imp. Antigrav System 18808 | -5/Factory | Repaired Adv. Sensor Array 19963 | -5/Factory | Repaired Broken F-cell Engine? 20061 | -5/Factory | Repaired Antigrav System 20096 | -5/Factory | Discovered exit to Factory (range 7) 20231 | -5/Factory | Discovered exit to Factory (range 12) 20284 | -5/Factory | Build established: Hacker-Scout 20297 | -5/Factory | Discovered exit to Factory (range 21) 20664 | -5/Factory | System corruption reached 10% 20982 | -5/Factory | Entered Upper Caves 21021 | -5/Upper Caves | Learned 4 Factory zone layouts 22032 | -5/Upper Caves | Discovered new exit (range 7) 22043 | -5/Upper Caves | Identified exit to Upper Caves 22082 | -5/Upper Caves | Entered another Upper Caves area 22083 | -5/Upper Caves | Discovered exit to Factory (range 9) 22390 | -5/Upper Caves | Learned 8 Factory zone layouts 22408 | -5/Upper Caves | Discovered new exit (range 11) 22443 | -5/Upper Caves | Identified exit to Warlord 22444 | -5/Upper Caves | Entered Warlord 22462 | -5/Warlord | System corruption cleaned by Quarantine Array 22471 | -5/Warlord | Discovered new exit (range 15) 22546 | -5/Warlord | Met Warlord 22550 | -5/Warlord | Opened Warlord's prototype stash 22563 | -5/Warlord | Found Prototype Reactor 22563 | -5/Warlord | Identified Vortex Chain Reactor 22571 | -5/Warlord | Warlord's base attacked by MAIN.C 22626 | -5/Warlord | Found Prototype Piercing Weapon 22626 | -5/Warlord | Identified Vortex Lance 22628 | -5/Warlord | Found Vortex Lance 22744 | -5/Warlord | Opened side exit 22753 | -5/Warlord | Identified exit to Proximity Caves 22753 | -5/Warlord | Entered Proximity Caves 22770 | -4/Proximity Caves | Learned location of Testing (-3) 23089 | -4/Proximity Caves | Discovered exit to Factory (range 8) 23134 | -4/Proximity Caves | Attracted the attention of an 0b10 checkpoint 23137 | -4/Proximity Caves | Entered Factory 23137 | -4/Factory | Evolved 2 slots: Utility x1, Weapon x1 23138 | -4/Factory | Identified exit to Upper Caves 23138 | -4/Factory | Identified exit to Extension 24586 | -4/Factory | Sucked down chute 24586 | -4/Factory | Entered Waste 24589 | -4/Waste | Spotted C-40 Crusher 24594 | -4/Waste | Spotted C-40 Crusher 24594 | -4/Waste | Spotted C-40 Crusher 24598 | -4/Waste | Spotted C-40 Crusher 24598 | -4/Waste | Spotted C-40 Crusher 24598 | -4/Waste | Spotted C-40 Crusher 24600 | -4/Waste | Discovered new exit (range 22) 24601 | -4/Waste | EMP discharged 24622 | -4/Waste | Identified exit to Factory 24622 | -4/Waste | Entered Factory 24642 | -4/Factory | Spotted B-86 Titan 25048 | -4/Factory | Build established: Hacker-Ninja 25330 | -4/Factory | Spotted B-86 Titan 25637 | -4/Factory | Build established: Hacker-Scout 25701 | -4/Factory | Local machine network offline 25701 | -4/Factory | Cargo convoy interrupted 25738 | -4/Factory | Incoming assault squad redirected 25805 | -4/Factory | Discovered exit to Upper Caves (range 8) 25869 | -4/Factory | Entered Upper Caves 25939 | -4/Upper Caves | Learned location of Quarantine (-2) 25966 | -4/Upper Caves | Discovered new exit (range 11) 25970 | -4/Upper Caves | Identified exit to Upper Caves 26033 | -4/Upper Caves | Entered another Upper Caves area 26048 | -4/Upper Caves | Discovered new exit (range 4) 26050 | -4/Upper Caves | Identified exit to Research 26112 | -4/Upper Caves | Learned 8 Research zone layouts 26147 | -4/Upper Caves | Discovered new exit (range 14) 26160 | -4/Upper Caves | Identified exit to Zhirov 26164 | -4/Upper Caves | Learned Research terminal intel 26169 | -4/Upper Caves | Entered Zhirov 26169 | -4/Zhirov | Discovered new exit (range 3) 26173 | -4/Zhirov | Identified exit to Proximity Caves 26183 | -4/Zhirov | Met Zhirov 26190 | -4/Zhirov | Learned location of Command (-1) 26198 | -4/Zhirov | Zhirov requested help retrieving the SGEMP Prototype 26205 | -4/Zhirov | Found Alien Artifact 26206 | -4/Zhirov | Identified Integrated Dissipator 26206 | -4/Zhirov | Installed Integrated Dissipator, increased core heat dissipation (+20) 26252 | -4/Zhirov | Found Alien Artifact 26252 | -4/Zhirov | Identified Transdimensional Reconstructor 26252 | -4/Zhirov | Warped through subspace 26286 | -4/Zhirov | Entered Proximity Caves 27148 | -3/Proximity Caves | Discovered exit to Research (range 15) 27196 | -3/Proximity Caves | Entered Research 27196 | -3/Research | Evolved 2 slots: Utility x2 27197 | -3/Research | Identified exit to Armory 27198 | -3/Research | Loaded intel: 19 terminal locations 27211 | -3/Research | Spotted B-86 Titan 27838 | -3/Research | Spotted B-86 Titan 27850 | -3/Research | Build established: Hacker-Ninja 27942 | -3/Research | Incoming investigation squad redirected 27975 | -3/Research | Fabricated Lrn. Sensor Array? 27980 | -3/Research | Cargo convoy interrupted 28221 | -3/Research | Lost 14 parts (3p6n4u1w) 28533 | -3/Research | Found Fusion Bomb Launcher 28610 | -3/Research | Spotted B-86 Titan 29216 | -3/Research | Build established: Hacker-Scout 29425 | -3/Research | Identified exit to Testing 29639 | -3/Research | Core integrity fell below 50% 29654 | -3/Research | Entered Armory 29655 | -3/Armory | Met VL-GR5, who suggested a friendly competition 29820 | -3/Armory | Incoming investigation squad redirected 29850 | -3/Armory | Spotted B-86 Titan 29886 | -3/Armory | Fabricated Exp. Optical Array? 30115 | -3/Armory | Core integrity fell below 20% 30143 | -3/Armory | Destroyed by Y-72 Warden with Quantum Rifle Last Messages --------------- 30103_ Particle Reactor tumbles out of recycling unit. 30103_ Mic. Antimatter Reactor tumbles out of recycling unit. 30105_ Recycling Unit disabled. 30107_ Adv. System Shield destroyed. 30107_ Lrn. Sensor Array destroyed. 30107_ Transfer Shaft disabled. 30108_ W-44 Eye sends out distress signal. 30109_ Impulse Thruster Array destroyed. 30109_ Nuclear Pulse Array destroyed. 30109_ Lgt. Particle Reactor destroyed. 30111_ Dropped Lrg. Storage Unit. 30113_ Nuclear Pulse Array destroyed. 30117_ The unstable cave ceiling collapses. 30118_ Q-thruster destroyed. 30118_ Packing Station disabled. 30118_ Dropped Com. Mass Driver. 30119_ The unstable cave ceiling collapses. 30136_ Critical hit (Burn: +50). 30138_ Penetrated by Slug. 30139_ Slug penetrates Wall. Map ----- +----------------------------------------------------+ | ???????????????????????? ??# * | | ??????????????????????? ]] ]]?# * " | | ??????????????????????# ]] ]] # " | | ??????????????????????# ]] ]] # " | | ????????????????????????? + " | | ???????????????????????????#+#### | | ????????????????????????????????# ## | | ????????????????????????????????# [[[ # | | ????????????????????????????????# [[[ | | ????????????????????????????????# # | | ????????????????????????????????# ]]] # ! | | ????????????????????????????????# ]]] !! | | ????????????????????????????????# ! | | ????????????????????????????????#### | | ?????????????????????????????????# | | ?????????????????????????????????# ] #### | | ?????????????????????????????????# ##??? | | ?????????????????????????????????# #???? | | ?????????????????????????????????# #???? | | ????????????????????????????????## " " #???? | | ????????????????????????????????+ #???? | | ????????????????????????????????# +???? | | ????????????????????????????????###### ### #???? | | ??????????????????????###????????????# #?# #???? | | ??????????????????????# !############# #?# #???? | | ??????????????????+ + @ Y g lll #?# +???? | | ??????????????????+ + Y #?? #???? | | ??????????????????# # ##+########## #??+##???? | | ??????????????????????###????????????# #????????? | | ?????????????????????????????????????# #????????? | | ?????????????????????????????????????# #????????? | | ?????????????????????????????????????# #????????? | | ?????????????????????????????????????# #????????? | | ?????????????????????????????????????# #????????? | | ?????????????????????????????????????# #????????? | | ?????????????????????????????????????# #????????? | | ????????????????????????############?# #????????? | | ????????????????????????# # #????????? | | ????????????????????????# !!! # #????????? | | ????????????????????????# !!! / #????????? | | ????????????????????????# !!! # #????????? | | ????????????????????????# # +????????? | | ????????????????????????# ?# #????????? | | ????????????????????????# ?# #????????? | | ????????????????????????# ??+ #????????? | | ????????????????????????# ??####????????? | | ????????????????????????# ???????????????? | | ????????????????????????# ???????????????? | | ????????????????????????# ????????????????? | | ????????????????????????#########????????????????? | +----------------------------------------------------+ Best States ------------- Heat Dissipation 71 Coolant Potential 50 Energy Generation 55 Energy Capacity 740 Matter Stores 300 Matter Capacity 300 Sight Range 23 Robot Scan Range 20 Terrain Scan Range 24 Terrain Scan Density 210 Jamming Range 16 Cloak Strength 2 Additional Mass Support 9 EM Shielding 2 Corruption Containment 12 Armor Coverage 600 Resistance: EM 25 Propulsion Shielding 33 Utility Shielding 90 Melee Speed Boost 30 Evasion (%) 64 Targeting Accuracy 14 Melee Accuracy 8 Target Analysis 8 Recoil Reduction 3 Offensive Hacking 26 Defensive Hacking 20 Item Schematics ----------------- Adv. Visual Processing Unit | -8/Materials | Hacked Lrg. Storage Unit | -7/Factory | Hacked Power Sword | -7/Factory | Hacked System Restoration Module | -7/Factory | Scanalyzed Imp. Antigrav System | -7/Factory | Scanalyzed Graphene Brace | -7/Factory | Scanalyzed Combat Drone Bay | -7/Data Miner | Free Lgt. Regenerative Plating | -7/Data Miner | Free Cld. Cesium-ion Thruster | -7/Data Miner | Free Gravity Neutralizer | -7/Data Miner | Free Cld. Plasma Cannon | -7/Data Miner | Free Gyrokinetic Inverter | -7/Data Miner | Free Adv. System Restoration Module | -7/Data Miner | Free Adv. Plasma Cannon | -7/Data Miner | Free Fission Core | -7/Data Miner | Free Cmb. Gravmag System | -7/Data Miner | Free Adv. Thermal Shield | -7/Data Miner | Free Q-thruster | -5/Factory | Hacked Adv. Sensor Array | -5/Factory | Hacked Imp. Linear Gravjet | -5/Factory | Scanalyzed Adv. Signal Interpreter | -5/Factory | Scanalyzed Adv. System Shield | -5/Factory | Hacked Lrn. Sensor Array | -4/Factory | Hacked Assault Drone Bay | -4/Zhirov | Free Exp. Heat Sink | -4/Zhirov | Free Exp. Optical Array | -4/Zhirov | Free Imp. Arc Thrower | -4/Zhirov | Free Robot Schematics ------------------ Y-54 Guardian | -7/Data Miner | Free H-66 Slayer | -7/Data Miner | Free G-50 Soldier | -7/Data Miner | Free A-15 Conveyor | -7/Data Miner | Free Fabricated ------------ Imp. Antigrav System | x2 | -7/Factory | Preloaded Imp. Antigrav System | x2 | -6/Factory Imp. Antigrav System | x2 | -6/Factory Lrn. Sensor Array | x1 | -3/Research Exp. Optical Array | x1 | -3/Armory Alien Tech Used ----------------- Dimensional Node Initializer Integrated Dissipator Transdimensional Reconstructor Achievements -------------- None Challenges ------------ None Game ------ Seed ShrapnelZhirovNanovents Manual? 0 Play Time 06:31:46 Cumulative 44.2 hours Start 2023.06.30 @ 15:53:32 End 2023.07.01 @ 15:37:55 Sessions 7 Manual Loads 0 Difficulty Rogue Special Mode None Game No. 38 Rogue 38 Adventurer 0 Explorer 0 Win Type - Total 0 Types 0/0/0/0/0/0/0/0/0 Lore% 28 Gallery% 29 Achievement% 51 Wizard Run 0 Options --------- ASCII 1 Keyboard 1 Movement Arrows Keybinds 0 Fullscreen 2 Font 24/Proggy Map View 76x50 Tactical HUD 1 Map Filters NONE Filters NONE Steam 1 RUN: 17cee380-1271-4314-b334-08aac4533740